[Event "Schack-SM 2023: Veteran-SM 50+"]
[Site "Helsingborg Arena, Mellersta Stenbocksgatan 14, Helsingborg, Sweden"]
[Date "2023.07.03"]
[Round "3.4"]
[White "Gamback, Bjorn"]
[Black "Andersson, Bjorn 1961"]
[Result "1/2-1/2"]
[TimeControl "90 minutes for 40 moves + 30 minutes for the rest of games + 30 seconds per move from move one."]
[WhiteTitle "CM"]
[WhiteElo "2048"]
[BlackElo "1791"]

1. Nf3 {[%clk 01:30:51]} {[%emt 00:00:08]} d5 {[%clk 01:20:11]} {[%emt
00:10:49]} 2. c4 {[%clk 01:28:55]} {[%emt 00:02:26]} Nf6 {[%clk 01:17:30]}
{[%emt 00:03:11]} 3. cxd5 {[%clk 01:28:49]} {[%emt 00:00:36]} Nxd5 {[%clk
01:17:17]} {[%emt 00:00:42]} 4. e4 {[%clk 01:28:06]} {[%emt 00:01:14]} Nf6
{[%clk 01:17:07]} {[%emt 00:00:40]} 5. Nc3 {[%clk 01:27:48]} {[%emt 00:00:48]}
e6 {[%clk 01:16:29]} {[%emt 00:01:08]} 6. d4 {[%clk 01:27:59]} {[%emt
00:00:18]} Be7 {[%clk 01:15:58]} {[%emt 00:01:01]} 7. Bd3 {[%clk 01:26:21]}
{[%emt 00:02:09]} c5 {[%clk 01:14:14]} {[%emt 00:02:15]} 8. h3 {[%clk
01:24:58]} {[%emt 00:01:53]} Nc6 {[%clk 01:10:12]} {[%emt 00:04:32]} 9. Be3
{[%clk 01:23:25]} {[%emt 00:02:03]} cxd4 {[%clk 01:07:14]} {[%emt 00:03:27]} 10.
Nxd4 {[%clk 01:23:10]} {[%emt 00:00:45]} Nxd4 {[%clk 01:06:01]} {[%emt
00:01:44]} 11. Bxd4 {[%clk 01:23:24]} {[%emt 00:00:15]} O-O {[%clk 01:06:04]}
{[%emt 00:00:27]} 12. e5 {[%clk 01:22:23]} {[%emt 00:01:31]} Nd5 {[%clk
01:05:14]} {[%emt 00:01:21]} 13. O-O {[%clk 01:21:19]} {[%emt 00:01:33]} Nb4
{[%clk 01:01:33]} {[%emt 00:04:12]} 14. Be4 {[%clk 01:20:38]} {[%emt 00:01:09]}
Nc6 {[%clk 01:01:31]} {[%emt 00:00:33]} 15. Ne2 {[%clk 01:13:44]} {[%emt
00:07:24]} Qa5 {[%clk 00:52:51]} {[%emt 00:09:01]} 16. Bxc6 {[%clk 00:42:49]}
{[%emt 00:31:33]} bxc6 {[%clk 00:51:40]} {[%emt 00:01:41]} 17. Qc2 {[%clk
00:43:11]} {[%emt 00:00:09]} Ba6 {[%clk 00:48:04]} {[%emt 00:04:05]} 18. Rfd1
{[%clk 00:38:39]} {[%emt 00:05:03]} Rfd8 {[%clk 00:43:12]} {[%emt 00:05:20]} 19.
Nc3 {[%clk 00:34:06]} {[%emt 00:05:05]} c5 {[%clk 00:40:09]} {[%emt 00:03:33]}
20. Be3 {[%clk 00:34:20]} {[%emt 00:00:16]} Bb7 {[%clk 00:38:24]} {[%emt
00:02:10]} 21. Ne4 {[%clk 00:32:22]} {[%emt 00:02:33]} Bxe4 {[%clk 00:36:44]}
{[%emt 00:02:10]} 22. Qxe4 {[%clk 00:32:34]} {[%emt 00:00:17]} Rab8 {[%clk
00:30:40]} {[%emt 00:06:34]} 23. b3 {[%clk 00:27:23]} {[%emt 00:05:43]} Qa6
{[%clk 00:18:14]} {[%emt 00:12:56]} 24. Qc2 {[%clk 00:22:26]} {[%emt 00:05:26]}
Qc6 {[%clk 00:16:11]} {[%emt 00:02:33]} 25. Rac1 {[%clk 00:21:57]} {[%emt
00:00:59]} Rxd1+ {[%clk 00:15:58]} {[%emt 00:00:43]} 26. Rxd1 {[%clk 00:22:13]}
{[%emt 00:00:14]} Rc8 {[%clk 00:15:09]} {[%emt 00:01:19]} 27. Qd3 {[%clk
00:19:54]} {[%emt 00:02:49]} h6 {[%clk 00:11:38]} {[%emt 00:04:02]} 28. Qd7
{[%clk 00:15:46]} {[%emt 00:04:37]} Qc7 {[%clk 00:11:31]} {[%emt 00:00:37]} 29.
f4 {[%clk 00:15:58]} {[%emt 00:00:17]} g6 {[%clk 00:08:47]} {[%emt 00:03:15]}
30. Qb5 {[%clk 00:12:40]} {[%emt 00:03:48]} Bf8 {[%clk 00:06:14]} {[%emt
00:03:03]} 31. Rd7 {[%clk 00:11:56]} {[%emt 00:01:13]} Qb6 {[%clk 00:06:13]}
{[%emt 00:00:31]} 32. Qd3 {[%clk 00:08:25]} {[%emt 00:04:01]} a6 {[%clk
00:05:05]} {[%emt 00:01:39]} 33. Kh2 {[%clk 00:07:05]} {[%emt 00:01:50]} Qb5
{[%clk 00:04:13]} {[%emt 00:01:22]} 34. Qd2 {[%clk 00:06:21]} {[%emt 00:01:13]}
c4 {[%clk 00:04:16]} {[%emt 00:00:28]} 35. bxc4 {[%clk 00:05:41]} {[%emt
00:01:11]} Qxc4 {[%clk 00:04:35]} {[%emt 00:00:10]} 36. Ra7 {[%clk 00:06:01]}
{[%emt 00:00:09]} Qc6 {[%clk 00:03:49]} {[%emt 00:01:17]} 37. Qd3 {[%clk
00:04:10]} {[%emt 00:02:21]} Qb5 {[%clk 00:03:12]} {[%emt 00:01:07]} 38. Qe4
{[%clk 00:03:45]} {[%emt 00:00:55]} Qc6 {[%clk 00:02:28]} {[%emt 00:01:15]} 39.
Qd4 {[%clk 00:03:32]} {[%emt 00:00:42]} Qb5 {[%clk 00:02:14]} {[%emt 00:00:44]}
40. a4 {[%clk 00:03:15]} {[%emt 00:00:47]} Qc6 {[%clk 00:02:03]} {[%emt
00:00:41]} 41. a5 {[%clk 00:01:06]} {[%emt 00:02:39]} Bc5 {[%clk 00:01:06]}
{[%emt 00:01:26]} 42. Qxc5 {[%clk 00:28:41]} {[%emt 00:02:56]} Qxc5 {[%clk
00:30:28]} {[%emt 00:01:08]} 43. Bxc5 {[%clk 00:29:09]} {[%emt 00:00:01]} Rxc5
{[%clk 00:30:53]} {[%emt 00:00:06]} 44. Rxa6 {[%clk 00:29:27]} {[%emt
00:00:12]} g5 {[%clk 00:30:58]} {[%emt 00:00:26]} 45. Kg3 {[%clk 00:26:52]}
{[%emt 00:03:04]} Kg7 {[%clk 00:30:36]} {[%emt 00:00:52]} 46. h4 {[%clk
00:16:38]} {[%emt 00:10:44]} Kg6 {[%clk 00:28:57]} {[%emt 00:02:09]} 47. hxg5
{[%clk 00:16:46]} {[%emt 00:00:22]} hxg5 {[%clk 00:29:07]} {[%emt 00:00:20]} 48.
Kg4 {[%clk 00:16:49]} {[%emt 00:00:26]} gxf4 {[%clk 00:28:59]} {[%emt
00:00:39]} 49. Kxf4 {[%clk 00:17:09]} {[%emt 00:00:10]} Rc4+ {[%clk 00:29:03]}
{[%emt 00:00:26]} 50. Kf3 {[%clk 00:16:22]} {[%emt 00:01:17]} Kf5 {[%clk
00:29:02]} {[%emt 00:00:31]} 51. Ra7 {[%clk 00:16:18]} {[%emt 00:00:34]} Rc3+
{[%clk 00:28:04]} {[%emt 00:01:28]} 52. Kf2 {[%clk 00:16:38]} {[%emt 00:00:10]}
Kg6 {[%clk 00:26:32]} {[%emt 00:02:03]} 53. a6 {[%clk 00:14:58]} {[%emt
00:02:10]} Ra3 {[%clk 00:26:31]} {[%emt 00:00:30]} 54. g3 {[%clk 00:14:26]}
{[%emt 00:01:01]} Kg7 {[%clk 00:26:33]} {[%emt 00:00:29]} 55. Kg2 {[%clk
00:14:31]} {[%emt 00:00:24]} Ra5 {[%clk 00:26:30]} {[%emt 00:00:33]} 56. Kf3
{[%clk 00:14:29]} {[%emt 00:00:31]} Rxe5 {[%clk 00:26:44]} {[%emt 00:00:18]} 57.
Rb7 {[%clk 00:14:46]} {[%emt 00:00:12]} Ra5 {[%clk 00:26:55]} {[%emt 00:00:19]}
58. a7 {[%clk 00:15:11]} {[%emt 00:00:06]} Ra4 {[%clk 00:24:44]} {[%emt
00:02:41]} 59. Ke3 {[%clk 00:14:56]} {[%emt 00:00:44]} e5 {[%clk 00:24:52]}
{[%emt 00:00:23]} 60. g4 {[%clk 00:14:10]} {[%emt 00:01:15]} Kf6 {[%clk
00:22:46]} {[%emt 00:02:36]} 61. Kd3 {[%clk 00:13:35]} {[%emt 00:01:05]} Kg6
{[%clk 00:22:13]} {[%emt 00:01:03]} 62. g5 {[%clk 00:13:36]} {[%emt 00:00:30]}
f5 {[%clk 00:20:27]} {[%emt 00:02:16]} 63. gxf6 {[%clk 00:13:39]} {[%emt
00:00:27]} Kxf6 {[%clk 00:20:46]} {[%emt 00:00:11]} 64. Kc3 {[%clk 00:14:01]}
{[%emt 00:00:08]} Kf5 {[%clk 00:20:43]} {[%emt 00:00:33]} 65. Kb3 {[%clk
00:13:32]} {[%emt 00:00:58]} Ra6 {[%clk 00:20:52]} {[%emt 00:00:20]} 66. Kc4
{[%clk 00:12:52]} {[%emt 00:01:11]} Ke4 {[%clk 00:20:45]} {[%emt 00:00:37]} 67.
Re7 {[%clk 00:12:14]} {[%emt 00:01:09]} Ra1 {[%clk 00:20:28]} {[%emt 00:00:47]}
68. Kc5 {[%clk 00:11:58]} {[%emt 00:00:45]} Kf4 {[%clk 00:20:21]} {[%emt
00:00:37]} 69. Kd5 {[%clk 00:11:05]} {[%emt 00:01:22]} Ra5+ {[%clk 00:20:26]}
{[%emt 00:00:24]} 70. Kc6 {[%clk 00:11:29]} {[%emt 00:00:07]} e4 {[%clk
00:20:31]} {[%emt 00:00:26]} 71. Kb6 {[%clk 00:11:37]} {[%emt 00:00:23]} Ra1
{[%clk 00:20:42]} {[%emt 00:00:19]} 72. Kb7 {[%clk 00:11:57]} {[%emt 00:00:10]}
Rb1+ {[%clk 00:20:31]} {[%emt 00:00:41]} 73. Kc8 {[%clk 00:12:18]} {[%emt
00:00:09]} Ra1 {[%clk 00:20:19]} {[%emt 00:00:42]} 74. Kb8 {[%clk 00:12:36]}
{[%emt 00:00:12]} e3 {[%clk 00:20:10]} {[%emt 00:00:39]} 75. a8=Q {[%clk
00:12:56]} {[%emt 00:00:10]} Rxa8+ {[%clk 00:20:27]} {[%emt 00:00:12]} 76. Kxa8
{[%clk 00:13:22]} {[%emt 00:00:05]} Kf3 {[%clk 00:20:49]} {[%emt 00:00:08]} 77.
Kb7 {[%clk 00:13:40]} {[%emt 00:00:12]} e2 {[%clk 00:21:07]} {[%emt 00:00:11]}
78. Kc6 {[%clk 00:14:04]} {[%emt 00:00:07]} Kf2 {[%clk 00:21:28]} {[%emt
00:00:10]} 79. Rf7+ {[%clk 00:14:27]} {[%emt 00:00:06]} Kg2 {[%clk 00:21:30]}
{[%emt 00:00:28]} 80. Rg7+ {[%clk 00:14:44]} {[%emt 00:00:13]} Kf2 {[%clk
00:21:44]} {[%emt 00:00:16]} 81. Re7 {[%clk 00:14:57]} {[%emt 00:00:17]} e1=Q
{[%clk 00:21:48]} {[%emt 00:00:24]} 82. Rxe1 {[%clk 00:15:23]} {[%emt
00:00:05]} Kxe1 {[%clk 00:21:59]} {[%emt 00:00:19]} 83. Kd5 {[%emt 00:00:23]}
1/2-1/2

[Event "Schack-SM 2023: Sverigemastarklassen"]
[Site "Helsingborg Arena, Mellersta Stenbocksgatan 14, Helsingborg, Sweden"]
[Date "2023.07.03"]
[Round "3.3"]
[White "Hillarp Persson, Tiger"]
[Black "Ernst, Thomas"]
[Result "0-1"]
[TimeControl "90 minutes for 40 moves + 30 minutes for the rest of the game + 30 seconds per move from move one."]
[WhiteTitle "GM"]
[BlackTitle "GM"]
[WhiteElo "2493"]
[BlackElo "2288"]

1. Nf3 {[%clk 01:30:56]} {[%emt 00:00:03]} c5 {[%clk 01:30:30]} {[%emt
00:00:31]} 2. e4 {[%clk 01:31:20]} {[%emt 00:00:06]} d6 {[%clk 01:30:49]}
{[%emt 00:00:10]} 3. d4 {[%clk 01:31:43]} {[%emt 00:00:08]} cxd4 {[%clk
01:31:10]} {[%emt 00:00:10]} 4. Qxd4 {[%clk 01:32:06]} {[%emt 00:00:06]} Nf6
{[%clk 01:31:06]} {[%emt 00:00:34]} 5. Be2 {[%clk 01:31:25]} {[%emt 00:01:11]}
Nc6 {[%clk 01:30:08]} {[%emt 00:01:28]} 6. Qe3 {[%clk 01:31:50]} {[%emt
00:00:05]} g6 {[%clk 01:25:40]} {[%emt 00:04:58]} 7. O-O {[%clk 01:30:41]}
{[%emt 00:01:39]} Bg7 {[%clk 01:25:44]} {[%emt 00:00:27]} 8. Rd1 {[%clk
01:28:45]} {[%emt 00:02:25]} O-O {[%clk 01:24:01]} {[%emt 00:02:13]} 9. h3
{[%clk 01:29:08]} {[%emt 00:00:07]} Qc7 {[%clk 01:20:30]} {[%emt 00:04:01]} 10.
Nc3 {[%clk 01:25:50]} {[%emt 00:03:47]} a6 {[%clk 01:20:20]} {[%emt 00:00:42]}
11. a3 {[%clk 01:25:26]} {[%emt 00:00:54]} b5 {[%clk 01:11:03]} {[%emt
00:09:46]} 12. Bd2 {[%clk 00:41:41]} Bb7 {[%clk 01:11:03]} 13. a4 {[%clk
00:41:41]} b4 {[%clk 01:11:03]} 14. Nd5 {[%clk 00:41:41]} Nxd5 {[%clk
01:11:03]} 15. exd5 {[%clk 00:41:41]} Na5 {[%clk 01:11:03]} 16. Bxb4 {[%clk
00:41:41]} Nc4 {[%clk 01:11:03]} 17. Qb3 {[%clk 00:41:41]} Nxb2 {[%clk
01:11:03]} 18. Rdc1 {[%clk 00:41:41]} Rab8 {[%clk 01:11:03]} 19. c3 {[%clk
00:41:41]} a5 {[%clk 01:11:03]} 20. Ba3 {[%clk 00:41:41]} Ba6 {[%clk 01:11:03]}
21. Qc2 {[%clk 00:41:41]} Bxe2 {[%clk 01:11:03]} 22. Qxe2 {[%clk 00:41:41]}
Nxa4 {[%clk 01:11:03]} 23. Bxd6 {[%clk 00:41:41]} Nxc3 {[%clk 01:11:03]} 24.
Qxe7 {[%clk 00:41:41]} Qxe7 {[%clk 01:11:03]} 25. Bxe7 {[%clk 00:41:41]} Ne2+
{[%clk 01:11:03]} 26. Kh2 {[%clk 00:41:41]} Nxc1 {[%clk 01:11:03]} 27. Rxc1
{[%clk 00:41:41]} Rfe8 {[%clk 01:11:03]} 28. Rc7 {[%clk 00:41:41]} a4 {[%clk
01:11:03]} 29. d6 {[%clk 00:41:41]} a3 {[%clk 01:11:03]} 30. Ra7 {[%clk
00:41:41]} Ra8 {[%clk 01:11:03]} 31. d7 {[%clk 00:41:41]} Reb8 {[%clk
01:11:03]} 32. Rxa8 {[%clk 00:41:41]} Rxa8 {[%clk 01:11:03]} 33. Bxa3 {[%clk
00:41:41]} Rd8 {[%clk 01:11:03]} 34. h4 {[%clk 00:41:41]} Rxd7 {[%clk
01:11:03]} 35. Bc5 {[%clk 00:41:41]} Rd5 {[%clk 01:11:03]} 36. Be3 {[%clk
00:41:41]} Bf8 {[%clk 01:11:03]} 37. g3 {[%clk 00:41:41]} Bc5 {[%clk 01:11:03]}
38. Bxc5 {[%clk 00:41:41]} Rxc5 {[%clk 01:11:03]} 39. Kg2 {[%clk 00:41:41]} h6
{[%clk 01:11:03]} 40. Nh2 {[%clk 00:41:41]} Rc4 {[%clk 01:11:03]} 41. Kf3
{[%clk 00:41:41]} Kg7 {[%clk 01:11:03]} 42. Ng4 {[%clk 00:41:41]} Rb4 {[%clk
01:11:03]} 43. Ne3 {[%clk 00:41:41]} Ra4 {[%clk 01:11:03]} 44. Ng4 {[%clk
00:41:41]} f5 {[%clk 01:11:03]} 45. Ne3 {[%clk 00:41:41]} Kf6 {[%clk 01:11:03]}
46. Kg2 {[%clk 00:41:41]} Ke5 {[%clk 01:11:03]} 47. Nf1 {[%clk 00:41:41]} f4
{[%clk 01:11:03]} 48. Nh2 {[%clk 00:41:41]} Kf5 {[%clk 01:11:03]} 49. g4+
{[%clk 00:25:38]} {[%emt 03:00:44]} Ke4 {[%clk 00:48:21]} 50. Nf3 {[%clk
00:25:38]} {[%emt 00:00:15]} Ra2 {[%clk 00:47:56]} 51. Nh2 {[%clk 00:18:08]}
{[%emt 00:08:55]} h5 {[%clk 00:45:26]} 52. gxh5 {[%clk 00:17:37]} {[%emt
00:04:01]} gxh5 {[%clk 00:45:48]} 53. Nf3 {[%clk 00:17:37]} Kf5 {[%clk
00:45:48]} 54. Ne1 {[%clk 00:17:37]} Kg4 {[%clk 00:45:48]} 0-1

[Event "Schack-SM 2023: Mastarklassen-elit"]
[Site "Helsingborg Arena, Mellersta Stenbocksgatan 14, Helsingborg, Sweden"]
[Date "2023.07.03"]
[Round "3.2"]
[White "Soderstrom, Adrian"]
[Black "Lindberg, Bengt"]
[Result "1-0"]
[TimeControl "90 minutes for 40 moves + 30 minutes for the rest of games + 30 seconds per move from move one."]
[WhiteTitle "FM"]
[BlackTitle "IM"]
[WhiteElo "2311"]
[BlackElo "2353"]

1. d4 {[%clk 01:30:57]} {[%emt 00:00:02]} Nf6 {[%clk 01:30:53]} {[%emt
00:00:07]} 2. c4 {[%clk 01:31:22]} {[%emt 00:00:04]} e6 {[%clk 01:31:19]}
{[%emt 00:00:05]} 3. g3 {[%clk 01:31:42]} {[%emt 00:00:10]} d5 {[%clk
01:31:36]} {[%emt 00:00:13]} 4. Bg2 {[%clk 01:32:09]} {[%emt 00:00:03]} Be7
{[%clk 01:31:59]} {[%emt 00:00:08]} 5. Nf3 {[%clk 01:32:30]} {[%emt 00:00:08]}
O-O {[%clk 01:32:21]} {[%emt 00:00:07]} 6. O-O {[%clk 01:32:55]} {[%emt
00:00:06]} dxc4 {[%clk 01:32:12]} {[%emt 00:00:40]} 7. Qc2 {[%clk 01:33:22]}
{[%emt 00:00:02]} a6 {[%clk 01:32:26]} {[%emt 00:00:16]} 8. a4 {[%clk
01:33:44]} {[%emt 00:00:08]} Bd7 {[%clk 01:32:41]} {[%emt 00:00:14]} 9. Qxc4
{[%clk 01:34:08]} {[%emt 00:00:07]} Bc6 {[%clk 01:33:00]} {[%emt 00:00:10]} 10.
Bf4 {[%clk 01:34:30]} {[%emt 00:00:09]} a5 {[%clk 01:30:44]} {[%emt 00:02:45]}
11. Nc3 {[%clk 01:34:03]} {[%emt 00:00:57]} Na6 {[%clk 01:29:08]} {[%emt
00:02:06]} 12. Rac1 {[%clk 01:34:02]} {[%emt 00:00:32]} Nb4 {[%clk 01:18:45]}
{[%emt 00:10:52]} 13. Ne5 {[%clk 01:33:55]} {[%emt 00:00:38]} Bxg2 {[%clk
01:18:50]} {[%emt 00:00:24]} 14. Kxg2 {[%clk 01:34:22]} {[%emt 00:00:04]} Nfd5
{[%clk 01:13:53]} {[%emt 00:05:26]} 15. Nxd5 {[%clk 01:32:55]} {[%emt
00:01:58]} Nxd5 {[%clk 01:11:36]} {[%emt 00:02:45]} 16. Bd2 {[%clk 01:33:14]}
{[%emt 00:00:12]} c6 {[%clk 01:07:37]} {[%emt 00:04:29]} 17. Rfd1 {[%clk
01:29:06]} {[%emt 00:04:39]} Nb6 {[%clk 00:54:05]} {[%emt 00:14:01]} 18. Qb3
{[%clk 01:28:52]} {[%emt 00:00:46]} Qd5+ {[%clk 00:45:30]} {[%emt 00:09:03]} 19.
Qxd5 {[%clk 01:29:09]} {[%emt 00:00:14]} Nxd5 {[%clk 00:45:43]} {[%emt
00:00:16]} 20. Nc4 {[%clk 01:22:08]} {[%emt 00:07:31]} Bb4 {[%clk 00:45:08]}
{[%emt 00:01:05]} 21. e4 {[%clk 01:12:58]} {[%emt 00:09:41]} Bxd2 {[%clk
00:43:50]} {[%emt 00:01:47]} 22. Rxd2 {[%clk 01:12:52]} {[%emt 00:00:36]} Nb4
{[%clk 00:44:01]} {[%emt 00:00:20]} 23. Rc3 {[%clk 01:10:32]} {[%emt 00:02:49]}
Rfb8 {[%clk 00:41:20]} {[%emt 00:03:10]} 24. Ne5 {[%clk 00:56:08]} {[%emt
00:14:55]} Rd8 {[%clk 00:40:26]} {[%emt 00:01:24]} 25. Kf1 {[%clk 00:51:43]}
{[%emt 00:04:54]} f6 {[%clk 00:36:12]} {[%emt 00:04:43]} 26. Nc4 {[%clk
00:49:44]} {[%emt 00:02:31]} Ra6 {[%clk 00:36:33]} {[%emt 00:00:10]} 27. Rb3
{[%clk 00:47:07]} {[%emt 00:03:06]} b6 {[%clk 00:32:46]} {[%emt 00:04:18]} 28.
Ke2 {[%clk 00:46:17]} {[%emt 00:01:19]} Rb8 {[%clk 00:28:18]} {[%emt 00:04:56]}
29. Ne3 {[%clk 00:41:46]} {[%emt 00:05:03]} b5 {[%clk 00:23:14]} {[%emt
00:05:35]} 30. axb5 {[%clk 00:38:09]} {[%emt 00:04:07]} cxb5 {[%clk 00:23:38]}
{[%emt 00:00:06]} 31. d5 {[%clk 00:35:57]} {[%emt 00:02:41]} exd5 {[%clk
00:24:03]} {[%emt 00:00:06]} 32. exd5 {[%clk 00:25:56]} {[%emt 00:10:31]} Rd8
{[%clk 00:23:55]} {[%emt 00:00:37]} 33. Rc3 {[%clk 00:24:11]} {[%emt 00:02:16]}
Rd7 {[%clk 00:21:05]} {[%emt 00:03:19]} 34. Rc8+ {[%clk 00:21:09]} {[%emt
00:03:33]} Kf7 {[%clk 00:21:30]} {[%emt 00:00:05]} 35. Rb8 {[%clk 00:21:09]}
{[%emt 00:00:29]} Na2 {[%clk 00:21:16]} {[%emt 00:00:42]} 36. Rxb5 {[%clk
00:20:26]} {[%emt 00:01:15]} a4 {[%clk 00:21:43]} {[%emt 00:00:04]} 37. Rc2
{[%clk 00:11:03]} {[%emt 00:09:53]} a3 {[%clk 00:16:24]} {[%emt 00:05:48]} 38.
bxa3 {[%clk 00:09:38]} {[%emt 00:01:56]} Rxa3 {[%clk 00:16:39]} {[%emt
00:00:15]} 39. Rbc5 {[%clk 00:08:42]} {[%emt 00:01:25]} Nb4 {[%clk 00:12:01]}
{[%emt 00:05:07]} 40. Rc7 {[%clk 00:04:47]} {[%emt 00:04:27]} Ra7 {[%clk
00:03:47]} {[%emt 00:08:44]} 41. Rxa7 {[%clk 00:28:42]} {[%emt 00:06:34]} Rxa7
{[%clk 00:33:08]} {[%emt 00:01:09]} 42. Rb2 {[%clk 00:28:54]} {[%emt 00:00:18]}
Ra4 {[%clk 00:33:08]} {[%emt 00:00:30]} 43. Rd2 {[%clk 00:27:03]} {[%emt
00:02:22]} Ra8 {[%clk 00:25:56]} {[%emt 00:07:41]} 44. Kf3 {[%clk 00:25:57]}
{[%emt 00:01:36]} g6 {[%clk 00:24:18]} {[%emt 00:02:07]} 45. Rd4 {[%clk
00:17:51]} {[%emt 00:08:37]} Rb8 {[%clk 00:24:33]} {[%emt 00:00:16]} 46. Rc4
{[%clk 00:16:00]} {[%emt 00:02:21]} Rb7 {[%clk 00:24:09]} {[%emt 00:00:52]} 47.
Ke4 {[%clk 00:15:46]} {[%emt 00:00:46]} Na6 {[%clk 00:18:55]} {[%emt 00:05:44]}
48. Kd4 {[%clk 00:14:41]} {[%emt 00:01:34]} Nb8 {[%clk 00:17:18]} {[%emt
00:02:06]} 49. Ra4 {[%clk 00:10:28]} {[%emt 00:04:45]} Nd7 {[%clk 00:11:55]}
{[%emt 00:05:51]} 50. Nc4 {[%clk 00:10:45]} {[%emt 00:00:15]} Rb1 {[%clk
00:11:35]} {[%emt 00:00:49]} 51. Ra2 {[%clk 00:08:47]} {[%emt 00:02:28]} h5
{[%clk 00:09:35]} {[%emt 00:02:30]} 52. Rd2 {[%clk 00:07:06]} {[%emt 00:02:11]}
Rh1 {[%clk 00:09:21]} {[%emt 00:00:44]} 53. d6 {[%clk 00:05:57]} {[%emt
00:01:40]} Rc1 {[%clk 00:05:26]} {[%emt 00:04:24]} 54. Kd5 {[%clk 00:05:34]}
{[%emt 00:00:53]} Nf8 {[%clk 00:03:44]} {[%emt 00:02:12]} 55. Ra2 {[%clk
00:04:53]} {[%emt 00:01:11]} Nd7 {[%clk 00:03:23]} {[%emt 00:00:51]} 56. Re2
{[%clk 00:04:48]} {[%emt 00:00:36]} Nf8 {[%clk 00:03:47]} {[%emt 00:00:05]} 57.
Re7+ {[%clk 00:05:10]} {[%emt 00:00:08]} Kg8 {[%clk 00:04:03]} {[%emt
00:00:14]} 58. d7 {[%clk 00:04:26]} {[%emt 00:01:15]} Nxd7 {[%clk 00:04:17]}
{[%emt 00:00:16]} 59. Rxd7 {[%clk 00:04:44]} {[%emt 00:00:11]} Rc2 {[%clk
00:04:42]} {[%emt 00:00:06]} 60. f4 {[%clk 00:04:40]} {[%emt 00:00:34]} Rxh2
{[%clk 00:04:52]} {[%emt 00:00:19]} 61. Ke6 {[%clk 00:04:31]} {[%emt 00:00:39]}
h4 {[%clk 00:05:02]} {[%emt 00:00:19]} 62. Kxf6 {[%clk 00:02:46]} {[%emt
00:02:16]} hxg3 {[%clk 00:05:23]} {[%emt 00:00:10]} 63. Ne5 {[%clk 00:02:13]}
{[%emt 00:01:03]} Ra2 {[%clk 00:03:57]} {[%emt 00:01:55]} 64. Rg7+ {[%clk
00:01:39]} {[%emt 00:01:04]} Kf8 {[%clk 00:04:21]} {[%emt 00:00:06]} 65. Nxg6+
{[%clk 00:02:02]} {[%emt 00:00:07]} Ke8 {[%clk 00:04:45]} {[%emt 00:00:05]} 66.
Rg8+ {[%clk 00:02:04]} {[%emt 00:00:28]} Kd7 {[%clk 00:05:11]} {[%emt
00:00:05]} 67. Ne5+ {[%clk 00:02:31]} {[%emt 00:00:03]} Kd6 {[%clk 00:05:18]}
{[%emt 00:00:24]} 68. Rxg3 {[%clk 00:02:51]} {[%emt 00:00:10]} Rf2 {[%clk
00:05:45]} {[%emt 00:00:03]} 69. Rd3+ {[%clk 00:03:02]} {[%emt 00:00:19]} Kc5
{[%clk 00:05:54]} {[%emt 00:00:21]} 70. f5 {[%clk 00:03:29]} {[%emt 00:00:03]}
1-0